Workbook

Sheet Tabella Articolo 3
A1: AMBITI DI INTERVENTO | B1: Assegnazione FSC 21-27 | E1: Fondo di Rotazione ex legge 183/1987 | F1: Cofinanziamento nuovi interventi | I1: Ammontare complessivo investimenti | J1: Numero interventi/ linee di azione
B2: Risorse FSC 21-27 (ass. ordinaria) | C2: (1) Risorse FSC 21-27 (Anticipazione) | D2: Totale Assegnazione FSC 21-27 | F2: Altre Risorse Ordinarie Regionali e Locali | G2: Altre Risorse Ordinarie Nazionali | H2: Totale Co-finanziamento con altre risorse
A4: Trasporti e mobilità | B4: 290,446,734.15 | C4: 5,000,000.00 | D4: =B4+C4 -> 295,446,734.15 | E4: 37,552,821.80 | G4: 44,537,469.24 | H4: =SUM(F4:G4) -> 44,537,469.24 | I4: =D4+E4+H4 -> 377,537,025.19 | J4: 20
A5: Competitività imprese | E5: 54,943,513.17 | I5: 54,943,513.17 | J5: 10
A6: Istruzione e formazione | E6: 10,367,939.15 | I6: 10,367,939.15 | J6: 3
A7: Cultura | E7: 14,871,723.40 | I7: 14,871,723.40 | J7: 8
A8: Lavoro e occupabilità | E8: 26,333,259.83 | I8: 26,333,259.83 | J8: 5
A9: Sociale e salute | C9: 35,200,000.00 | D9: =B9+C9 -> 35,200,000.00 | E9: 9,600,000.00 | I9: 44,800,000.00 | J9: 9
A10: Capacità amministrativa | B10: 3,000,000.00 | D10: 3,000,000.00 | E10: 647,749.68 | I10: 3,647,749.68 | J10: 2
A11: Totale Aree Tematiche | B11: =SUM(B4:B10) -> 293,446,734.15 | C11: 40,200,000.00 | D11: 333,646,734.15 | E11: 154,317,007.03 | F11: 0 | G11: 44,537,469.24 | H11: 44,537,469.24 | I11: 532,501,210.42 | J11: 57
A12: Totale Assegnazione FSC 21-27 | B12: =B11 -> 293,446,734.15 | C12: 40,200,000.00 | D12: 333,646,734.15
A14: (1) Risorse già assegnate: anticipazioni disposte con delibere CIPESS; assegnate con provvedimenti di legge; ecc. - Include anche le risorse definanziate ex Delibera 16/2023 e riprogrammate

Sheet Allegato A1_Elenco interventi
A1: Accordo per la Coesione Governo - Regione Marche Allegato A1 Programma di interventi con cronoprogramma procedurale - valori in euro
A2: ID | B2: AMMINISTRAZIONE | C2: AREATEMATICA | D2: LINEA DI INTERVENTO | E2: CUP | F2: TITOLO | G2: COSTO TOTALE | H2: IMPORTO RICHIESTO FSC 21-27 | I2: FDR LEGGE 183/87 | J2: COFINANZIAMENTO CON ALTRE RISORSE | K2: PROGRAMMAZIONE | M2: PROGETTAZIONE | O2: ESECUZIONE
K3: PREVISIONE INIZIO | L3: PREVISIONE FINE | M3: PREVISIONE INIZIO | N3: PREVISIONE FINE | O3: PREVISIONE INIZIO | P3: PREVISIONE FINE
A4: FSCRI_RI_1293 | B4: REGIONE MARCHE / COMUNE DI FANO | C4: 07.TRASPORTI E MOBILITÀ | D4: 07.03 TRASPORTO MARITTIMO E LOGISTICA | E4: E37F23000050001 | F4: MANUTENZIONE STRAORDINARIA PER LAVORI DI DRAGAGGIO DELL'AREA DEL PORTO DI FANO - BACINO D'EVOLUZIONE | G4: 2,500,000.00 | H4: 2,500,000.00 | J4: 0 | K4: 2_SEMESTRE_2023 | L4: 2_SEMESTRE_2023 | M4: 1_SEMESTRE_2026 | N4: 2_SEMESTRE_2026 | O4: 1_SEMESTRE_2027 | P4: 2_SEMESTRE_2028
A5: FSCRI_RI_1303 | B5: REGIONE MARCHE / ANAS | C5: 07.TRASPORTI E MOBILITÀ | D5: 07.01 TRASPORTO STRADALE | E5: B41B23000600001 | F5: COLLEGAMENTO SS76-E78 PEDEMONTANA DELLE MARCHE: LOTTO 1 CARPEGNA - LUNANO (1° STRALCIO) | G5: 27,346,734.15 | H5: 27,346,734.15 | J5: 0 | K5: 2_SEMESTRE_2023 | L5: 2_SEMESTRE_2023 | M5: 1_SEMESTRE_2027 | N5: 2_SEMESTRE_2028 | O5: 1_SEMESTRE_2029 | P5: 2_SEMESTRE_2031
A6: FSCRI_RI_1309 | B6: REGIONE MARCHE - ANAS | C6: 07.TRASPORTI E MOBILITÀ | D6: 07.01 TRASPORTO STRADALE | E6: B11B23000470001 | F6: BYPASS PRESSO LA FRAZIONE DI PORTO POTENZA PICENA NEL COMUNE DI POTENZA PICENA - 1° STRALCIO | G6: 11,000,000.00 | H6: 11,000,000.00 | J6: 0 | K6: 2_SEMESTRE_2023 | L6: 2_SEMESTRE_2023 | M6: 1_SEMESTRE_2026 | N6: 2_SEMESTRE_2027 | O6: 1_SEMESTRE_2028 | P6: 2_SEMESTRE_2031
A7: FSCRI_RI_180 | B7: REGIONE MARCHE / REGIONE MARCHE | C7: 07.TRASPORTI E MOBILITÀ | D7: 07.01 TRASPORTO STRADALE | E7: B61B21006470003 | F7: BRETELLA DI COLLEGAMENTO TRA LA SS 77 VAL DI CHIENTI E LA STATALE 16 VERSO PORTO SANT’ELPIDIO | G7: 48,200,000.00 | H7: 26,000,000.00 | J7: 22,200,000.00 | K7: 2_SEMESTRE_2021 | L7: 2_SEMESTRE_2021 | M7: 1_SEMESTRE_2022 | N7: 1_SEMESTRE_2025 | O7: 2_SEMESTRE_2025 | P7: 2_SEMESTRE_2030
A8: FSCRI_RI_183 | B8: REGIONE MARCHE / COMUNE DI SENIGALLIA | C8: 07.TRASPORTI E MOBILITÀ | D8: 07.03 TRASPORTO MARITTIMO E LOGISTICA | E8: H16E24000000001 | F8: LAVORI DI DRAGAGGIO E DI COMPLETAMENTO DI OPERE PREVISTE NEL PRP DEL PORTO DI SENIGALLIA | G8: 2,500,000.00 | H8: 2,500,000.00 | J8: 0 | K8: 2_SEMESTRE_2023 | L8: 2_SEMESTRE_2023 | M8: 1_SEMESTRE_2025 | N8: 2_SEMESTRE_2025 | O8: 1_SEMESTRE_2026 | P8: 2_SEMESTRE_2029
A9: FSCRI_RI_187 | B9: REGIONE MARCHE | C9: 07.TRASPORTI E MOBILITÀ | D9: 07.01 TRASPORTO STRADALE | E9: B41B23000590003 | F9: VARIANTE SS16 FANO-MAROTTA (1° STRALCIO) | G9: =H9+I9 -> 39,000,000.00 | H9: 30,000,000.00 | I9: 9,000,000.00 | K9: 2_SEMESTRE_2023 | L9: 2_SEMESTRE_2023 | M9: 1_SEMESTRE_2025 | N9: 1_SEMESTRE_2026 | O9: 2_SEMESTRE_2026 | P9: 2_SEMESTRE_2031
A10: FSCRI_RI_189 | B10: REGIONE MARCHE / REGIONE MARCHE | C10: 07.TRASPORTI E MOBILITÀ | D10: 07.01 TRASPORTO STRADALE | E10: B21B23000660001 | F10: COLLEGAMENTO VILLA POTENZA - SAMBUCHETO | G10: 30,000,000.00 | H10: 30,000,000.00 | J10: 0 | K10: 2_SEMESTRE_2023 | L10: 2_SEMESTRE_2023 | M10: 1_SEMESTRE_2026 | N10: 2_SEMESTRE_2026 | O10: 1_SEMESTRE_2027 | P10: 2_SEMESTRE_2031
A11: FSCRI_RI_191 | B11: REGIONE MARCHE - PROVINCIA PU | C11: 07.TRASPORTI E MOBILITÀ | D11: 07.01 TRASPORTO STRADALE | E11: B41B23000610001 | F11: BYPASS MONTECCHIO - RIO SALSO | G11: 5,000,000.00 | H11: 5,000,000.00 | J11: 0 | K11: 2_SEMESTRE_2023 | L11: 2_SEMESTRE_2023 | M11: 1_SEMESTRE_2025 | N11: 2_SEMESTRE_202 | O11: 1_SEMESTRE_2027 | P11: 2_SEMESTRE_2029
A12: FSCRI_RI_192 | B12: REGIONE MARCHE / PROVINCIA DI FERMO | C12: 07.TRASPORTI E MOBILITÀ | D12: 07.01 TRASPORTO STRADALE | E12: B54E23000860003 | F12: AMMODERNAMENTO SS433 VAL D'ASO DA KM 35+800 A KM 33+200. PRIMO STRALCIO | G12: 9,000,000.00 | H12: 3,000,000.00 | J12: 6,000,000.00 | K12: 2_SEMESTRE_2023 | L12: 2_SEMESTRE_2023 | M12: 1_SEMESTRE_2024 | N12: 1_SEMESTRE_2025 | O12: 2_SEMESTRE_2025 | P12: 2_SEMESTRE_2027
A13: FSCRI_RI_196 | B13: REGIONE MARCHE / REGIONE MARCHE | C13: 07.TRASPORTI E MOBILITÀ | D13: 07.01 TRASPORTO STRADALE | E13: B74E23000990003 | F13: AMPLIAMENTO IN SEDE SR502 JESI - CINGOLI (1° STRALCIO) | G13: 23,000,000.00 | H13: 13,000,000.00 | J13: 10,000,000.00 | K13: 2_SEMESTRE_2023 | L13: 2_SEMESTRE_2023 | M13: 1_SEMESTRE_2025 | N13: 2_SEMESTRE_2025 | O13: 1_SEMESTRE_2026 | P13: 2_SEMESTRE_2030
A14: FSCRI_RI_197 | B14: REGIONE MARCHE | C14: 07.TRASPORTI E MOBILITÀ | D14: 07.01 TRASPORTO STRADALE | E14: B61B23000610001 | F14: CONNESSIONE INTERVALLIVA TRA SS76 E E78 - SERRA S.ABBONDIO-CAGLI - LOTTO 3C CONNESSIONE SS3-SS424 | G14: 40,000,000.00 | H14: 40,000,000.00 | J14: 0 | K14: 2_SEMESTRE_2023 | L14: 2_SEMESTRE_2023 | M14: 1_SEMESTRE_2026 | N14: 2_SEMESTRE_2026 | O14: 1_SEMESTRE_2027 | P14: 2_SEMESTRE_2031
A15: FSCRI_RI_199 | B15: REGIONE MARCHE / PROVINCIA DI ASCOLI PICENO | C15: 07.TRASPORTI E MOBILITÀ | D15: 07.01 TRASPORTO STRADALE | E15: I51B20000540001 | F15: INTERVALLIVA DEL PICENO. AMMODERNAMENTO VIABILITÀ MEZZINA - I STRALCIO IV LOTTO. OFFIDA - SP43 | G15: 11,100,000.00 | H15: 11,100,000.00 | J15: 0 | K15: 2_SEMESTRE_2023 | L15: 2_SEMESTRE_2023 | M15: 1_SEMESTRE_2026 | N15: 2_SEMESTRE_2026 | O15: 1_SEMESTRE_2027 | P15: 2_SEMESTRE_2031
A16: FSCRI_RI_526 | B16: REGIONE MARCHE / REGIONE MARCHE | C16: 07.TRASPORTI E MOBILITÀ | D16: 07.01 TRASPORTO STRADALE | E16: B41B21007580003 | F16: MARE-MONTI: BRETELLA CONNESSIONE DA SP204 LUNGOTENNA (SAN MARCO) AL CASELLO A14 DI P.S.ELPIDIO | G16: 24,700,000.00 | H16: 24,000,000.00 | J16: 700,000.00 | K16: 2_SEMESTRE_2021 | L16: 2_SEMESTRE_2021 | M16: 1_SEMESTRE_2022 | N16: 2_SEMESTRE_2025 | O16: 1_SEMESTRE_2026 | P16: 2_SEMESTRE_2030
A17: FSCRI_RI_527 | B17: REGIONE MARCHE / PROVINCIA DI FERMO | C17: 07.TRASPORTI E MOBILITÀ | D17: 07.01 TRASPORTO STRADALE | E17: B61B23000620001 | F17: MARE-MONTI: BYPASS MOLINI CONCERIA (SP219) | G17: 15,000,000.00 | H17: 15,000,000.00 | J17: 0 | K17: 2_SEMESTRE_2023 | L17: 2_SEMESTRE_2023 | M17: 1_SEMESTRE_2026 | N17: 2_SEMESTRE_2027 | O17: 1_SEMESTRE_2028 | P17: 2_SEMESTRE_2031
A18: FSCRI_RI_544 | B18: REGIONE MARCHE | C18: 12.CAPACITÀ AMMINISTRATIVA | D18: 12.02 ASSISTENZA TECNICA | E18: B31C24000070001 | F18: ASSISTENZA TECNICA ALL'ACCORDO GOVERNO - REGIONE MARCHE FSC 2021-2027 | G18: 3,000,000.00 | H18: 3,000,000.00 | J18: 0 | M18: 1_SEMESTRE_2025 | N18: 1_SEMESTRE_2025 | O18: 2_SEMESTRE_2025 | P18: 2_SEMESTRE_2031
A19: FSCRI_RI_545 | B19: REGIONE MARCHE (BENEFICIARIO) - ANAS/SOGGETTO ATTUATORE SISMA 2016 (ATTUATORE) | C19: 07.TRASPORTI E MOBILITÀ | D19: 07.01 TRASPORTO STRADALE | E19: B61B23000630003 | F19: COLLEG. SS76-E78: FOSSOMBRONE-PERGOLA-SERRA SANT'ABBONDIO (1°STRALCIO - 1°LOTTO FOSSOMBRONE-PERGOLA) | G19: 55,637,469.24 | H19: 50,000,000.00 | J19: 5,637,469.24 | K19: 2_SEMESTRE_2023 | L19: 2_SEMESTRE_2023 | M19: 1_SEMESTRE_2024 | N19: 2_SEMESTRE_2026 | O19: 1_SEMESTRE_2027 | P19: 2_SEMESTRE_2030
G20: =SUM(G4:G19) -> 346,984,203.39 | H20: =SUM(H4:H19) -> 293,446,734.15 | I20: 9,000,000.00 | J20: 44,537,469.24

Sheet Allegato A2_Anticipazioni
A1: Accordo per la Coesione Governo - Regione Marche Allegato A2 Elenco interventi finanziati in anticipazione FSC 21-27 - valori in euro
A2: Area tematica | B2: Linea di Intervento | C2: Cup | D2: Titolo | E2: Costo Totale | F2: Importo FSC 21-27 (anticipazione) | G2: Cofinanziamento con altre risorse
A3: 10.Sociale e salute | B3: STRUTTURE E ATTREZZATURE SANITARIE | C3: H69H09000500003 | D3: Nuova struttura ospedaliera in loc. S. Claudio di Campiglione nel territorio del Comune di Fermo - Approvazione perizia di variante e suppletiva n.3 | E3: 100,000,000.00 € | F3: 28,200,000.00 € | G3: 71,800,000.00 €
A4: 10.Sociale e salute | B4: STRUTTURE E ATTREZZATURE SANITARIE | C4: B75D11000130003 | D4: Nuovo complesso sede dell’IRCCS INRCA e dell’Ospedale di rete zona sud Ancona Approvazione perizia di variante e suppletiva n.4 - Capitolo n.1 | E4: 86,500,000.00 € | F4: 7,000,000.00 € | G4: 79,500,000.00 €
A5: 07.Trasporti e mobilità | B5: TRASPORTO STRADALE | C5: F91B21005170001 | D5: PEDEMONTANA DELLE MARCHE - AGGIORNAMENTO PROGETTO DEFINITIVO E PROGETTO ESECUTIVO - TRATTO FABRIANO - BERBENTINA (SASSOFERRATO) | E5: 50,000,000.00 € | F5: 5,000,000.00 € | G5: -

Sheet Allegato A3 - Fondo di Rotazio
A1: Accordo per la Coesione Governo - Regione Marche Allegato A3 Programma di interventi con cronoprogramma procedurale - valori in euro (quota Fondo di Rotazione ex lege 183/1987)
B2: AMMINISTRAZIONE | C2: AREATEMATICA | D2: LINEA DI INTERVENTO | E2: CUP | F2: TITOLO | G2: COSTO COMPLESSIVO | H2: FDR Legge 183/87 | I2: COFINANZIAMENTO CON ALTRE RISORSE | J2: PROGRAMMAZIONE | L2: PROGETTAZIONE | N2: ESECUZIONE
J3: INIZIO | K3: FINE | L3: INIZIO | M3: FINE | N3: INIZIO LAVORI | O3: FINE LAVORI
A4: 1 | B4: Comune di Civitanova Marche (MC) | C4: 07 - TRASPORTI | D4: 07.03 - TRASPORTO MARITTIMO | E4: E71I24000010002 | F4: Miglioramento dell’accessibilità e della sicurezza del bacino portuale di Civitanova Marche tramite realizzazione molo di sopraflutto del prolungamento molo est | G4: 9,811,341.64 € | H4: 9,811,341.64 € | J4: 2024-01-01 | K4: 2024-12-31 | L4: 2025-01-01 | M4: 2026-12-31 | N4: 2027-01-01 | O4: 2029-12-31
A5: 2 | B5: Comune di Porto San Giorgio (FM) | C5: 07 - TRASPORTI | D5: 07.03 - TRASPORTO MARITTIMO | E5: J65D24000000001 | F5: Adeguamento morfologico e strutturale del porto di Porto San Giorgio | G5: 7,262,210.46 € | H5: 7,262,210.46 € | J5: 2024-01-01 | K5: 2024-12-31 | L5: 2025-01-01 | M5: 2026-12-31 | N5: 2027-01-01 | O5: 2029-12-31
A6: 3 | B6: Comune di Numana (AN) | C6: 07 - TRASPORTI | D6: 07.03 - TRASPORTO MARITTIMO | E6: J67F24000080001 | F6: Miglioramento dell’accessibilità e della sicurezza del bacino portuale di Numana tramite la realizzazione di nuove opere foranee | G6: 11,479,269.71 € | H6: 11,479,269.71 € | J6: 2025-01-01 | K6: 2025-06-01 | L6: 2025-06-01 | M6: 2025-12-31 | N6: 2025-12-31 | O6: 2029-12-31
A7: 4 | B7: Regione Marche | C7: 07 - TRASPORTI | D7: 07.01 - TRASPORTO STRADALE | E7: B41B23000590003 | F7: Variante SS16 Fano-Marotta (1° stralcio) | G7: 9,000,000.00 € | H7: 9,000,000.00 € | J7: 2024-01-01 | K7: 2024-12-31 | L7: 2024-10-15 | M7: 2027-06-30 | N7: 2027-07-01 | O7: 2029-12-31
A8: 5 | B8: Regione Marche - Agenzia per il turismo e l'internazionalizzazione delle Marche (ATIM) | C8: 03 - COMPETITIVITA' IMPRESE | D8: 03.02 - TURISMO E OSPTITALITA' | F8: Promozione e Sviluppo sostenibile ed integrato del Turismo nelle Marche. Azioni di promozione, comunicazione e realizzazione di eventi/incoming e fiere | G8: 14,717,012.45 € | H8: 14,717,012.45 € | J8: 2024-01-01 | K8: 2024-06-30 | L8: 2024-02-01 | M8: 2026-09-30 | N8: 2024-02-01 | O8: 2026-12-31
A9: 6 | B9: Regione Marche e i Comuni | C9: 03 - COMPETITIVITA' IMPRESE | D9: 03.02 - TURISMO E OSPTITALITA' | F9: Riodino, potenziamento e riqualificazione delle sedi IAT e dei punti informativi del territorio | G9: 1,962,268.33 € | H9: 1,962,268.33 € | J9: 2024-05-01 | K9: 2025-09-01 | L9: 2025-01-01 | M9: 2025-12-01 | N9: 2026-01-01 | O9: 2029-12-01
A10: 7 | B10: Comuni della Regione Marche | C10: 03 - COMPETITIVITA' IMPRESE | D10: 03.02 - TURISMO E OSPTITALITA' | F10: Sostegno alle iniziative integrate di recupero, riqualificazione e valorizzazione dei borghi e dei centri storici delle Marche (L.R. n. 29/2021) | G10: 14,717,012.46 € | H10: 14,717,012.46 € | J10: 2023-05-01 | K10: 2024-06-01 | L10: 2024-01-01 | M10: 2024-12-01 | N10: 2025-01-01 | O10: 2028-12-01
A11: 8 | B11: Comuni della Regione Marche | C11: 03 - COMPETITIVITA' IMPRESE | D11: 03.02 - TURISMO E OSPTITALITA' | F11: Potenziamento dei servizi di accoglienza turistica del territorio mediante organizzazione degli Ambiti Turistici Locali (art. 1 c. 3 L.R. 9/2006 e succ. m.i.) e sviluppo dei Circuiti di prodotto | G11: 3,924,536.66 € | H11: 3,924,536.66 € | J11: 2024-05-01 | K11: 2025-09-01 | L11: 2025-01-01 | M11: 2025-12-01 | N11: 2026-01-01 | O11: 2029-12-01
A12: 9 | B12: Regione Marche | C12: 03 - COMPETITIVITA' IMPRESE | D12: 03.02 - TURISMO E OSPTITALITA' | F12: Valorizzazione luoghi e itinerari della fede e del turismo religioso in preparazione del Giubileo 2025 | G12: 1,471,701.25 € | H12: 1,471,701.25 € | J12: 2024-05-01 | K12: 2024-12-01 | L12: 2024-06-01 | M12: 2025-03-01 | N12: 2025-01-01 | O12: 2026-12-01
A13: 10 | B13: Regione Marche | C13: 03 - COMPETITIVITA' IMPRESE | D13: 03.02 - TURISMO E OSPTITALITA' | F13: CONTRIBUTI PER LA RIQUALIFICAZIONE DELLE STRUTTURE ALBERGHIERE E RICETTIVE | G13: 14,717,012.45 € | H13: 14,717,012.45 € | J13: 2024-03-01 | K13: 2025-01-01 | L13: 2024-09-01 | M13: 2025-06-01 | N13: 2025-07-01 | O13: 2029-12-01
A14: 11 | B14: Regione Marche | C14: 06 - CULTURA | D14: 06.01 - PATRIMONIO E PAESAGGIO | F14: Interventi di valorizzazione, gestione e fruizione del patrimonio culturale - Efficientamento energetico e riduzione rischio sismico | G14: 7,260,392.81 € | H14: 7,260,392.81 € | J14: 2024-01-01 | K14: 2024-12-31 | L14: 2025-01-01 | M14: 2025-06-30 | N14: 2026-01-01 | O14: 2029-12-31
A15: 12 | B15: Regione Marche e Comuni | C15: 06 - CULTURA | D15: 06.02 - ATTIVITA' CULTURALI | F15: Interventi di valorizzazione, gestione e fruizione del patrimonio culturale - Archeorete | G15: 883,020.75 € | H15: 883,020.75 € | J15: 2024-01-01 | K15: 2024-12-31 | L15: 2025-01-01 | M15: 2025-06-30 | N15: 2025-07-01 | O15: 2028-12-31
A16: 13 | B16: Regione Marche e Comuni | C16: 06 - CULTURA | D16: 06.02 - ATTIVITA' CULTURALI | F16: Interventi di valorizzazione, gestione e fruizione del patrimonio culturale - Aggregazioni culturali | G16: 1,275,474.41 € | H16: 1,275,474.41 € | J16: 2024-09-01 | K16: 2024-12-31 | L16: 2025-01-01 | M16: 2025-06-30 | N16: 2025-07-01 | O16: 2027-12-31
A17: 14 | B17: Regione Marche – Fondazione Marche Cultura (Marche Film Commission) | C17: 06 - CULTURA | D17: 06.02 - ATTIVITA' CULTURALI | F17: Promozione attività di Marche Film Commission. Azioni a sostegno della filiera audiovisivo | G17: 392,453.67 € | H17: 392,453.67 € | J17: 2024-09-01 | K17: 2024-11-30 | L17: 2024-12-01 | M17: 2024-12-31 | N17: 2025-01-01 | O17: 2027-12-31
A18: 15 | B18: Regione Marche e Comuni | C18: 06 - CULTURA | D18: 06.02 - ATTIVITA' CULTURALI | F18: Interventi di valorizzazione per eventi culturali di rilievo regionale | G18: 3,539,623.79 € | H18: 3,539,623.79 € | J18: 2024-01-01 | K18: 2024-06-30 | L18: 2024-07-01 | M18: 2024-09-30 | N18: 2025-01-01 | O18: 2026-12-31
A19: 16 | B19: Regione Marche e Comuni | C19: 06 - CULTURA | D19: 06.02 - ATTIVITA' CULTURALI | F19: Interventi di valorizzazione dell’arte contemporanea | G19: 441,510.38 € | H19: 441,510.38 € | J19: 2024-01-01 | K19: 2024-06-30 | L19: 2024-07-01 | M19: 2024-09-30 | N19: 2024-10-01 | O19: 2025-12-31
A20: 19 | B20: Regione Marche – Organismi strumentali in-house providing | C20: 06 - CULTURA | D20: 06.01 - PATRIMONIO E PAESAGGIO | F20: Adeguamento funzionale e strutturale del Sistema Informativo Regionale del Patrimonio Culturale (SIRPaC) | G20: 392,453.67 € | H20: 392,453.67 € | J20: 2024-10-01 | K20: 2024-11-30 | L20: 2024-12-01 | M20: 2024-12-31 | N20: 2025-01-01 | O20: 2027-12-31
A21: 20 | B21: Regione Marche – Organismi strumentali in-house providing | C21: 06 - CULTURA | D21: 06.02 - ATTIVITA' CULTURALI | F21: Spese per la realizzazione e la fruizione digitale del patrimonio culturale | G21: 686,793.92 € | H21: 686,793.92 € | J21: 2024-01-01 | K21: 2024-12-31 | L21: 2025-01-01 | M21: 2025-06-30 | N21: 2025-07-01 | O21: 2028-12-31
A22: 21 | B22: Regione Marche | C22: 03 - COMPETITIVITA' IMPRESE | D22: 03.01 - INDUSTRIA E SERVIZI | F22: Contrbuti alle associazioni di categoria del settore cooperazione per progetti di informazione, ed assistenza alle imprese cooperative | G22: 147,170.12 € | H22: 147,170.12 € | J22: 2024-01-01 | K22: 2024-04-30 | L22: 2024-05-01 | M22: 2024-06-30 | N22: 2024-07-01 | O22: 2025-12-31
A23: 22 | B23: Regione Marche | C23: 03 - COMPETITIVITA' IMPRESE | D23: 03.01 - INDUSTRIA E SERVIZI | F23: Sostegno alle PMI cooperative per gli investimenti in ammodernamento tecnologico e creazione di nuove unità produttive e per le attività di animazione | G23: 490,567.08 € | H23: 490,567.08 € | J23: 2024-09-01 | K23: 2024-11-30 | L23: 2024-12-01 | M23: 2025-06-30 | N23: 2025-08-01 | O23: 2026-07-31
A24: 23 | B24: Regione Marche | C24: 03 - COMPETITIVITA' IMPRESE | D24: 03.01 - INDUSTRIA E SERVIZI | F24: Sostegno alle PMI cooperative per gli investimenti in ammodernamento tecnologico e creazione di nuove unità produttive e per le attività di animazione e supporto alle imprese cooperative | G24: 343,396.96 € | H24: 343,396.96 € | J24: 2024-09-01 | K24: 2024-11-30 | L24: 2024-12-01 | M24: 2025-06-30 | N24: 2025-08-01 | O24: 2026-07-31
A25: 24 | B25: Regione Marche | C25: 03 - COMPETITIVITA' IMPRESE | D25: 03.01 - INDUSTRIA E SERVIZI | F25: Investimenti produttivi delle PMI | G25: 2,452,835.41 € | H25: 2,452,835.41 € | J25: 2024-01-01 | K25: 2024-05-31 | L25: 2024-06-01 | M25: 2024-10-31 | N25: 2024-11-01 | O25: 2025-12-31
A26: 25 | B26: Regione Marche e soggetto gestore | C26: 09 - LAVORO E OCCUPABILITA' | D26: 09.01 - SVILUPPO DELL'OCCUPAZIONE | F26: Fondo Regionale di ingegneria finanziaria – Fidejussione | G26: 294,340.25 € | H26: 294,340.25 € | J26: 2024-09-01 | K26: 2024-11-30 | L26: 2024-12-01 | M26: 2028-12-31 | N26: 2025-01-01 | O26: 2029-12-31
A27: 26 | B27: Regione Marche | C27: 09 - LAVORO E OCCUPABILITA' | D27: 09.01 - SVILUPPO DELL'OCCUPAZIONE | F27: Incentivi per la stabilizzazione dei lavoratori precari residenti nella Regione Marche” | G27: 7,643,471.33 € | H27: 7,643,471.33 € | J27: 2024-08-01 | K27: 2024-11-30 | L27: 2024-12-01 | M27: 2028-12-31 | N27: 2025-01-01 | O27: 2029-12-31
A28: 27 | B28: Regione Marche | C28: 09 - LAVORO E OCCUPABILITA' | D28: 09.01 - SVILUPPO DELL'OCCUPAZIONE | F28: Avviso per la concessione di “Aiuti alle assunzioni di soggetti disoccupati residenti nella Regione Marche” | G28: 6,384,131.18 € | H28: 6,384,131.18 € | J28: 2024-08-01 | K28: 2024-11-30 | L28: 2024-12-01 | M28: 2028-12-31 | N28: 2024-08-01 | O28: 2029-12-31
A29: 28 | B29: Regione Marche | C29: 09 - LAVORO E OCCUPABILITA' | D29: 09.01 - SVILUPPO DELL'OCCUPAZIONE | F29: Avviso per la concessione di “Aiuti alle assunzioni di soggetti svantaggiati” | G29: 2,452,835.41 € | H29: 2,452,835.41 € | J29: 2024-03-01 | K29: 2024-07-31 | L29: 2024-07-01 | M29: 2028-12-31 | N29: 2024-08-01 | O29: 2029-12-31
A30: 29 | B30: Regione Marche | C30: 09 - LAVORO E OCCUPABILITA' | D30: 09.01 - SVILUPPO DELL'OCCUPAZIONE | F30: Finanziamento Fondo Regionale di ingegneria finanziaria per la concessione di microcredito alle Micro e Piccole Imprese e ai liberi professionisti in possesso delle caratteristiche previste dagli Avvisi pubblici | G30: 9,558,481.66 € | H30: 9,558,481.66 € | J30: 2024-08-01 | K30: 2024-11-30 | L30: 2024-12-01 | M30: 2028-12-31 | N30: 2025-01-01 | O30: 2029-12-31
A31: 30 | B31: Regione Marche | C31: 11 - ISTRUZIONE E FORMAZIONE | D31: 11.02 - EDUCAZIONE E FORMAZIONE | F31: Emanazione avvisi pubblici per la presentazione di progetti formativi | G31: 6,867,939.15 € | H31: 6,867,939.15 € | J31: 2024-08-01 | K31: 2024-11-30 | L31: 2024-12-01 | M31: 2028-12-31 | N31: 2025-01-01 | O31: 2029-12-31
A32: 32 | B32: Regione Marche e ERDIS | C32: 11 - ISTRUZIONE E FORMAZIONE | D32: 11.02 - EDUCAZIONE E FORMAZIONE | F32: Finanziamento quota monetaria della borsa di studio aggiudicata con graduatorie definitive riferite a bandi ERDIS | G32: 3,000,000.00 € | H32: 3,000,000.00 € | J32: 2024-01-01 | K32: 2024-06-30 | L32: 2025-01-01 | M32: 2026-12-31 | N32: 2027-01-01 | O32: 2027-12-31
A33: 33 | B33: Regione Marche | C33: 11 - ISTRUZIONE E FORMAZIONE | D33: 11.02 - EDUCAZIONE E FORMAZIONE | F33: Finanziamento Misure ed Azioni per la promozione della pratica sportiva e delle attività motorio-ricreative nel territorio regionale | G33: 500,000.00 € | H33: 500,000.00 € | J33: 2024-01-01 | K33: 2024-06-30 | L33: 2024-07-01 | M33: 2024-12-31 | N33: 2025-01-01 | O33: 2026-12-31
A34: 34 | B34: Regione Marche, Ambiti Territoriali Sociali/ Comuni | C34: 10 - SOCIALE E SALUTE | D34: 10.03 - SERVIZI SOCIO - ASSISTENZIALI | F34: Intervento per il sostengo delle azioni a favore dei minori temporaneamente allontanati dalla famiglia di origine e collocati in strutture residenziali | G34: 1,000,000.00 € | H34: 1,000,000.00 € | J34: 2024-08-01 | K34: 2024-11-17 | L34: 2024-11-18 | M34: 2025-03-15 | N34: 2025-03-01 | O34: 2025-04-30
A35: 35 | B35: Regione Marche, Ambiti Territoriali Sociali/ Comuni | C35: 10 - SOCIALE E SALUTE | D35: 10.03 - SERVIZI SOCIO - ASSISTENZIALI | F35: L.R. 9/2003 - Intervento per l’implementazione dei servizi educativi per minori in fascia di età 3/17 anni | G35: 500,000.00 € | H35: 500,000.00 € | J35: 2024-08-01 | K35: 2024-11-30 | L35: 2024-12-01 | M35: 2025-02-15 | N35: 2025-02-16 | O35: 2025-04-30
A36: 36 | B36: Regione Marche, Ambiti Territoriali Sociali/ Comuni | C36: 10 - SOCIALE E SALUTE | D36: 10.03 - SERVIZI SOCIO - ASSISTENZIALI | F36: L.R. 18/96 - Art. 14 Integrazione scolastica - Trasporto scolastico alunni disabili | G36: 1,200,000.00 € | H36: 1,200,000.00 € | J36: 2024-08-01 | K36: 2024-11-11 | L36: 2024-11-12 | M36: 2025-02-15 | N36: 2024-02-16 | O36: 2025-12-31
A37: 37 | B37: Regione Marche, Ambiti Territoriali Sociali/ Comuni | C37: 10 - SOCIALE E SALUTE | D37: 10.03 - SERVIZI SOCIO - ASSISTENZIALI | F37: L.R. n. 32/2014 articolo 23 - Contributi erogati dalla Regione agli ATS per la gestione dell’intervento “disabilità gravissima” attraverso assegnazione diretta | G37: 3,000,000.00 € | H37: 3,000,000.00 € | J37: 2024-03-25 | K37: 2024-04-22 | L37: 2024-04-23 | M37: 2024-11-30 | N37: 2024-12-01 | O37: 2025-03-30
A38: 38 | B38: Regione Marche, Ambiti Territoriali Sociali/ Comuni | C38: 10 - SOCIALE E SALUTE | D38: 10.03 - SERVIZI SOCIO - ASSISTENZIALI | F38: L.R. 18/96 - Intervento di assistenza domiciliare domestica ed educativa in favore delle persone in condizione di disabilità | G38: 1,100,000.00 € | H38: 1,100,000.00 € | J38: 2024-08-01 | K38: 2024-11-30 | L38: 2024-12-01 | M38: 2025-01-15 | N38: 2025-01-16 | O38: 2026-12-31
A39: 39 | B39: Regione Marche, Ambiti Territoriali Sociali/ Comuni | C39: 10 - SOCIALE E SALUTE | D39: 10.03 - SERVIZI SOCIO - ASSISTENZIALI | F39: L.R. 25/2014, art. 11 - Contributi alle famiglie con persone con disturbi dello spettro autistico. | G39: 250,000.00 € | H39: 250,000.00 € | J39: 2024-08-01 | K39: 2024-11-11 | L39: 2024-11-12 | M39: 2025-04-15 | N39: 2025-04-16 | O39: 2025-05-31
A40: 40 | B40: Regione Marche, Ambiti Territoriali Sociali/ Comuni | C40: 10 - SOCIALE E SALUTE | D40: 10.03 - SERVIZI SOCIO - ASSISTENZIALI | F40: L.R. n. 32/2014 articolo 23 - Intervento a favore di persone anziane non autosufficienti. Contributi erogati dalla Regione agli ATS per la gestione degli interventi Assegno di cura e SAD - Servizio di Assistenza Domiciliare | G40: 2,550,000.00 € | H40: 2,550,000.00 € | J40: 2024-05-13 | K40: 2024-06-04 | L40: 2024-10-01 | M40: 2024-11-15 | N40: 2024-12-01 | O40: 2025-12-31
A41: 41 | B41: Regione Marche | C41: 12 - CAPACITA' AMMINISTRATIVA | D41: 12.02 - ASSISTENZA TECNICA | E41: B31C24000070001 | F41: Efficace attuazione dell'Accordo di Coesione Marche 21-27 | G41: 647,749.68 € | H41: 647,749.68 € | J41: 2024-01-01 | K41: 2024-07-31 | L41: 2024-08-01 | M41: 2024-09-30 | N41: 2024-10-01 | O41: 2029-12-31
G42: =SUM(G4:G41) -> 154,317,007.03 € | H42: =SUM(H4:H41) -> 154,317,007.03 €

Sheet Allegato B1__Piano fin. accordo
A1: Accordo per la Coesione Governo - Regione Marche Allegato B1 - Piano finanziario di spesa dell’Accordo per annualità (solo quota FSC 21-27) - valori in euro
B2: 2023 | C2: 2024 | D2: 2025 | E2: 2026 | F2: 2027 | G2: 2028 | H2: 2029 | I2: 2030 | J2: 2031 | K2: TOTALE
A3: Assegnazione ordinaria FSC 21-27 | B3: 0 | C3: 0 | D3: 915,000.00 € | E3: 10,885,000.00 € | F3: 48,870,000.00 € | G3: 64,550,000.00 € | H3: 73,144,020.25 € | I3: 67,473,367.08 € | J3: 27,609,346.82 € | K3: =SUM(B3:J3) -> 293,446,734.15 €

Sheet All.B2–Piano fin.int quota FSC
G1: Accordo per la Coesione Governo - Regione Marche Allegato B2 Programma di interventi con cronoprogramma finanziario - valori in euro
A2: ID | B2: AMMINISTRAZIONE | C2: AREATEMATICA | D2: LINEA DI INTERVENTO | E2: CUP | F2: TITOLO | G2: PROV | H2: COSTO TOTALE | I2: IMPORTO RICHIESTO FSC 21-27 | J2: FDR LEGGE 183/87 | K2: COFINANZIAMENTO CON ALTRE RISORSE | L2: 2023 | M2: 2024 | N2: 2025 | O2: 2026 | P2: 2027 | Q2: 2028 | R2: 2029 | S2: 2030 | T2: 2031
A3: MAR-0000341 | B3: Regione Marche | C3: 07.TRASPORTI E MOBILITÀ | D3: 07.01 TRASPORTO STRADALE | E3: B41B21007580003 | F3: Mare-Monti: Bretella connessione da SP204 Lungotenna (San Marco) al casello A14 di P.S.Elpidio | G3: FM | H3: 24,700,000.00 | I3: 24,000,000.00 | K3: 700,000.00 | N3: 100,000.00 | O3: 4,000,000.00 | P3: 4,000,000.00 | Q3: 6,000,000.00 | R3: 6,000,000.00 | S3: 3,900,000.00
A4: MAR-0000182 | B4: Regione Marche | C4: 07.TRASPORTI E MOBILITÀ | D4: 07.01 TRASPORTO STRADALE | E4: B61B21006470003 | F4: Bretella di collegamento tra la SS 77 Val di Chienti e la Statale 16 verso Porto Sant’Elpidio | G4: MC - FM | H4: 48,200,000.00 | I4: 26,000,000.00 | K4: 22,200,000.00 | P4: 6,000,000.00 | Q4: 7,000,000.00 | R4: 7,000,000.00 | S4: 6,000,000.00
A5: MAR-0000392 | B5: Regione Marche | C5: 07.TRASPORTI E MOBILITÀ | D5: 07.01 TRASPORTO STRADALE | E5: B11B23000470001 | F5: Bypass presso la frazione di Porto Potenza Picena nel Comune di Potenza Picena - 1° Stralcio | G5: MC | H5: 11,000,000.00 | I5: 11,000,000.00 | O5: 200,000.00 | P5: 500,000.00 | Q5: 1,500,000.00 | R5: 3,400,000.00 | S5: 3,400,000.00 | T5: 2,000,000.00
A6: MAR-0000532 | B6: Regione Marche | C6: 07.TRASPORTI E MOBILITÀ | D6: 07.01 TRASPORTO STRADALE | E6: B61B23000630003 | F6: Colleg. SS76-E78: Fossombrone-Pergola-Serra Sant'Abbondio (1°stralcio - 1°lotto Fossombrone-Pergola) | G6: PU | H6: 55,637,469.24 | I6: 50,000,000.00 | K6: 5,637,469.24 | P6: 10,000,000.00 | Q6: 15,000,000.00 | R6: 15,000,000.00 | S6: 10,000,000.00
A7: MAR-0000342 | B7: Regione Marche | C7: 07.TRASPORTI E MOBILITÀ | D7: 07.01 TRASPORTO STRADALE | E7: B61B23000620001 | F7: Mare-Monti: Bypass Molini Conceria (SP219) | G7: FM | H7: 15,000,000.00 | I7: 15,000,000.00 | O7: 200,000.00 | P7: 800,000.00 | Q7: 3,000,000.00 | R7: 4,000,000.00 | S7: 4,000,000.00 | T7: 3,000,000.00
A8: MAR-0000175 | B8: Regione Marche | C8: 07.TRASPORTI E MOBILITÀ | D8: 07.01 TRASPORTO STRADALE | E8: B41B23000590003 | F8: Variante SS16 Fano-Marotta (1° stralcio) | G8: PU | H8: 39,000,000.00 | I8: 30,000,000.00 | J8: 9,000,000.00 | P8: 4,000,000.00 | Q8: 7,000,000.00 | R8: 8,000,000.00 | S8: 8,000,000.00 | T8: 3,000,000.00
A9: MAR-0000183 | B9: Regione Marche | C9: 07.TRASPORTI E MOBILITÀ | D9: 07.01 TRASPORTO STRADALE | E9: I51B20000540001 | F9: Intervalliva del Piceno. Ammodernamento viabilità Mezzina - I stralcio IV lotto. Offida - SP43 | G9: AP | H9: 11,100,000.00 | I9: 11,100,000.00 | O9: 200,000.00 | P9: 600,000.00 | Q9: 2,000,000.00 | R9: 3,000,000.00 | S9: 3,000,000.00 | T9: 2,300,000.00
A10: MAR-0000390 | B10: Regione Marche | C10: 07.TRASPORTI E MOBILITÀ | D10: 07.03 TRASPORTO MARITTIMO E LOGISTICA | E10: E37F23000050001 | F10: Manutenzione straordinaria per lavori di dragaggio dell'area del porto di Fano - bacino d'evoluzione | G10: PU | H10: 2,500,000.00 | I10: 2,500,000.00 | O10: 500,000.00 | P10: 1,600,000.00 | Q10: 400,000.00
A11: MAR-0000188 | B11: Regione Marche | C11: 07.TRASPORTI E MOBILITÀ | D11: 07.03 TRASPORTO MARITTIMO E LOGISTICA | E11: H16E24000000001 | F11: Lavori di dragaggio e di completamento di opere previste nel PRP del porto di Senigallia | G11: AN | H11: 2,500,000.00 | I11: 2,500,000.00 | N11: 115,000.00 | O11: 985,000.00 | P11: 570,000.00 | Q11: 350,000.00 | R11: 480,000.00
A12: MAR-0000189 | B12: Regione Marche | C12: 07.TRASPORTI E MOBILITÀ | D12: 07.01 TRASPORTO STRADALE | E12: B61B23000610001 | F12: Connessione intervalliva tra SS76 e E78 - Serra S.Abbondio-Cagli - lotto 3c connessione SS3-SS424 | G12: PU | H12: 40,000,000.00 | I12: 40,000,000.00 | O12: 2,000,000.00 | P12: 7,000,000.00 | Q12: 8,000,000.00 | R12: 8,000,000.00 | S12: 8,000,000.00 | T12: 7,000,000.00
A13: MAR-0000181 | B13: Regione Marche | C13: 07.TRASPORTI E MOBILITÀ | D13: 07.01 TRASPORTO STRADALE | E13: B21B23000660001 | F13: Collegamento Villa Potenza - Sambucheto | G13: MC | H13: 30,000,000.00 | I13: 30,000,000.00 | O13: 2,000,000.00 | P13: 5,000,000.00 | Q13: 6,000,000.00 | R13: 6,000,000.00 | S13: 6,000,000.00 | T13: 5,000,000.00
A14: MAR-0000391 | B14: Regione Marche | C14: 07.TRASPORTI E MOBILITÀ | D14: 07.01 TRASPORTO STRADALE | E14: B41B23000600001 | F14: Collegamento SS76-E78 Pedemontana delle Marche: Lotto 1, 1° stralcio Carpegna - Lunano | G14: PU | H14: 27,346,734.15 | I14: 27,346,734.15 | P14: 1,400,000.00 | Q14: 1,400,000.00 | R14: 7,364,020.25 | S14: 12,273,367.08 | T14: =+I14-P14-Q14-R14-S14 -> 4,909,346.82
A15: MAR-0000176 | B15: Regione Marche | C15: 07.TRASPORTI E MOBILITÀ | D15: 07.01 TRASPORTO STRADALE | E15: B74E23000990003 | F15: Ampliamento in sede SR502 Jesi - Cingoli (1° stralcio) | G15: AN - MC | H15: 23,000,000.00 | I15: 13,000,000.00 | K15: 10,000,000.00 | P15: 2,500,000.00 | Q15: 5,000,000.00 | R15: 3,000,000.00 | S15: 2,500,000.00
A16: MAR-0000180 | B16: Regione Marche | C16: 07.TRASPORTI E MOBILITÀ | D16: 07.01 TRASPORTO STRADALE | E16: B54E23000860003 | F16: Ammodernamento SS433 Val D'Aso da km 35+800 a km 33+200. Primo stralcio | G16: FM | H16: 9,000,000.00 | I16: 3,000,000.00 | K16: 6,000,000.00 | P16: 3,000,000.00
A17: MAR-0000179 | B17: Regione Marche | C17: 07.TRASPORTI E MOBILITÀ | D17: 07.01 TRASPORTO STRADALE | E17: B41B23000610001 | F17: Bypass Montecchio - Rio Salso | G17: PU | H17: 5,000,000.00 | I17: 5,000,000.00 | N17: 200,000.00 | O17: 300,000.00 | P17: 1,500,000.00 | Q17: 1,500,000.00 | R17: 1,500,000.00
A18: MAR-0000353 | B18: Regione Marche | C18: 12.CAPACITÀ AMMINISTRATIVA | D18: 12.02 ASSISTENZA TECNICA | E18: B31C24000070001 | F18: Assistenza tecnica all'Accordo Governo - Regione Marche FSC 2021-2027 | G18: AN | H18: 3,000,000.00 | I18: 3,000,000.00 | M18: 0.00 | N18: 500,000.00 | O18: 500,000.00 | P18: 400,000.00 | Q18: 400,000.00 | R18: 400,000.00 | S18: 400,000.00 | T18: 400,000.00
H19: =SUM(H3:H18) -> 346,984,203.39 | I19: =SUM(I3:I18) -> 293,446,734.15 | J19: =SUM(J3:J18) -> 9,000,000.00 | K19: 44,537,469.24 | L19: =SUM(L3:L18) -> 0.00 | M19: 0.00 | N19: =SUM(N3:N18) -> 915,000.00 | O19: =SUM(O3:O18) -> 10,885,000.00 | P19: 48,870,000.00 | Q19: 64,550,000.00 | R19: 73,144,020.25 | S19: 67,473,367.08 | T19: 27,609,346.82

Sheet All.B3–Piano fin.int quota FdR
A1: Accordo per la Coesione Governo - Regione Marche Allegato B3 Programma di interventi con cronoprogramma finanziario - valori in euro (quota Fondo di Rotazione ex lege 183/1987)
A2: # | B2: AMMINISTRAZIONE | C2: AREA TEMATICA | D2: LINEA DI INTERVENTO | E2: CUP | F2: TITOLO | G2: PROVINCIA | H2: COSTO COMPLESSIVO | I2: FDR Legge 183/87 | J2: COFINANZIAMENTO CON ALTRE RISORSE | K2: 2023 | L2: 2024 | M2: 2025 | N2: 2026 | O2: 2027 | P2: 2028 | Q2: 2029
A3: 1 | B3: Comune di Civitanova Marche (MC) | C3: 07 - TRASPORTI | D3: 07.03 - TRASPORTO MARITTIMO | E3: E71I24000010002 | F3: Miglioramento dell’accessibilità e della sicurezza del bacino portuale di Civitanova Marche tramite realizzazione molo di sopraflutto del prolungamento molo est | G3: PROVINCIA DI MACERATA | H3: 9,811,341.64 € | I3: 9,811,341.64 € | K3: 0 | L3: 0 | M3: 450,000.00 € | N3: 450,000.00 € | O3: 3,000,000.00 € | P3: 3,000,000.00 € | Q3: 2,911,341.64 €
A4: 2 | B4: Comune di Porto San Giorgio (FM) | C4: 07 - TRASPORTI | D4: 07.03 - TRASPORTO MARITTIMO | E4: J65D24000000001 | F4: Adeguamento morfologico e strutturale del porto di Porto San Giorgio | G4: PROVINCIA DI FERMO | H4: 7,262,210.46 € | I4: 7,262,210.46 € | K4: 0 | L4: 0 | M4: 350,000.00 € | N4: 350,000.00 € | O4: 3,000,000.00 € | P4: 3,000,000.00 € | Q4: 562,210.46 €
A5: 3 | B5: Comune di Numana (AN) | C5: 07 - TRASPORTI | D5: 07.03 - TRASPORTO MARITTIMO | E5: J67F24000080001 | F5: Miglioramento dell’accessibilità e della sicurezza del bacino portuale di Numana tramite la realizzazione di nuove opere foranee | G5: PROVINCIA DI ANCONA | H5: 11,479,269.70 € | I5: 11,479,269.70 € | K5: 0 | L5: 0 | M5: 474,269.70 € | N5: 3,248,250.00 € | O5: 3,067,750.00 € | P5: 3,067,750.00 € | Q5: 1,621,250.00 €
A6: 4 | B6: Regione Marche | C6: 07 - TRASPORTI | D6: 07.01 - TRASPORTO STRADALE | E6: B41B23000590003 | F6: Variante SS16 Fano-Marotta (1° stralcio) | G6: PROVINCIA DI PESARO-URBINO | H6: 9,000,000.00 € | I6: 9,000,000.00 € | K6: 0 | L6: 0 | M6: 1,000,000.00 € | N6: 2,900,000.00 € | O6: 1,700,000.00 € | P6: 1,700,000.00 € | Q6: 1,700,000.00 €
A7: 5 | B7: Regione Marche - Agenzia per il turismo e l'internazionalizzazione delle Marche (ATIM) | C7: 03 - COMPETITIVITA' IMPRESE | D7: 03.02 - TURISMO E OSPTITALITA' | F7: Promozione e Sviluppo sostenibile ed integrato del Turismo nelle Marche. Azioni di promozione, comunicazione e realizzazione di eventi/incoming e fiere | H7: 14,717,012.45 € | I7: 14,717,012.45 € | K7: 0 | L7: 4,905,670.81 € | M7: 4,905,670.82 € | N7: 4,905,670.82 € | O7: 0 | P7: 0 | Q7: 0
A8: 6 | B8: Regione Marche e i Comuni | C8: 03 - COMPETITIVITA' IMPRESE | D8: 03.02 - TURISMO E OSPTITALITA' | F8: Riordino, potenziamento e riqualificazione degli IAT e dei punti informativi del territorio | H8: 1,962,268.33 € | I8: 1,962,268.33 € | K8: 0 | L8: 0 | M8: 0 | N8: 588,680.50 € | O8: 588,680.50 € | P8: 588,680.50 € | Q8: 196,226.83 €
A9: 7 | B9: Comuni della Regione Marche | C9: 03 - COMPETITIVITA' IMPRESE | D9: 03.02 - TURISMO E OSPTITALITA' | F9: Sostegno alle iniziative integrate di recupero, riqualificazione e valorizzazione dei borghi e dei centri storici delle Marche (L.R. n. 29/2021) | H9: 14,717,012.46 € | I9: 14,717,012.46 € | K9: 0 | L9: 0 | M9: 4,415,103.74 € | N9: 4,415,103.74 € | O9: 4,415,103.74 € | P9: 1,471,701.24 € | Q9: 0
A10: 8 | B10: Comuni della Regione Marche | C10: 03 - COMPETITIVITA' IMPRESE | D10: 03.02 - TURISMO E OSPTITALITA' | F10: Potenziamento dei servizi di accoglienza turistica del territorio mediante organizzazione degli Ambiti Turistici Locali (art. 1 c. 3 L.R. 9/2006 e succ. m.i.) e sviluppo dei Circuiti di prodotto | H10: 3,924,536.66 € | I10: 3,924,536.66 € | K10: 0 | L10: 0 | M10: 0 | N10: 1,177,361.00 € | O10: 1,177,361.00 € | P10: 1,177,361.00 € | Q10: 392,453.66 €
A11: 9 | B11: Regione Marche | C11: 03 - COMPETITIVITA' IMPRESE | D11: 03.02 - TURISMO E OSPTITALITA' | F11: Valorizzazione luoghi e itinerari della fede e del turismo religioso in preparazione del Giubileo 2025 | H11: 1,471,701.25 € | I11: 1,471,701.25 € | K11: 0 | L11: 0 | M11: 735,850.62 € | N11: 735,850.63 € | O11: 0 | P11: 0 | Q11: 0
A12: 10 | B12: Regione Marche | C12: 03 - COMPETITIVITA' IMPRESE | D12: 03.02 - TURISMO E OSPTITALITA' | F12: CONTRIBUTI PER LA RIQUALIFICAZIONE DELLE STRUTTURE ALBERGHIERE E RICETTIVE | H12: 14,717,012.45 € | I12: 14,717,012.45 € | K12: 0 | L12: 0 | M12: 3,000,000.00 € | N12: 1,717,012.45 € | O12: 5,000,000.00 € | P12: 5,000,000.00 € | Q12: 0
A13: 11 | B13: Regione Marche | C13: 06 - CULTURA | D13: 06.01 - PATRIMONIO E PAESAGGIO | F13: Interventi di valorizzazione, gestione e fruizione del patrimonio culturale - Efficientamento energetico e riduzione rischio sismico | H13: 7,260,392.81 € | I13: 7,260,392.81 € | K13: 0 | L13: 0 | M13: 637,737.20 € | N13: 637,737.21 € | O13: 1,471,701.25 € | P13: 2,513,217.15 € | Q13: 2,000,000.00 €
A14: 12 | B14: Regione Marche e Comuni | C14: 06 - CULTURA | D14: 06.02 - ATTIVITA' CULTURALI | F14: Interventi di valorizzazione, gestione e fruizione del patrimonio culturale - Archeorete | H14: 883,020.75 € | I14: 883,020.75 € | K14: 0 | L14: 0 | M14: 245,283.54 € | N14: 343,396.95 € | O14: 147,170.14 € | P14: 147,170.12 € | Q14: 0
A15: 13 | B15: Regione Marche e Comuni | C15: 06 - CULTURA | D15: 06.02 - ATTIVITA' CULTURALI | F15: Interventi di valorizzazione, gestione e fruizione del patrimonio culturale - Aggregazioni Culturali | H15: 1,275,474.41 € | I15: 1,275,474.41 € | K15: 0 | L15: 0 | M15: 429,246.20 € | N15: 429,246.20 € | O15: 416,982.01 € | P15: 0 | Q15: 0
A16: 14 | B16: Regione Marche – Fondazione Marche Cultura (Marche Film Commission) | C16: 06 - CULTURA | D16: 06.02 - ATTIVITA' CULTURALI | F16: Promozione attività di Marche Film Commission. Azioni a sostegno della filiera audiovisivo | H16: 392,453.67 € | I16: 392,453.67 € | K16: 0 | L16: 0 | M16: 123,113.41 € | N16: 123,113.42 € | O16: 146,226.84 € | P16: 0 | Q16: 0
A17: 15 | B17: Regione Marche e Comuni | C17: 06 - CULTURA | D17: 06.02 - ATTIVITA' CULTURALI | F17: Interventi di valorizzazione per eventi culturali di rilievo regionale | H17: 3,539,623.79 € | I17: 3,539,623.79 € | K17: 0 | L17: 0 | M17: 1,539,623.79 € | N17: 2,000,000.00 € | O17: 0 | P17: 0 | Q17: 0
A18: 16 | B18: Regione Marche e Comuni | C18: 06 - CULTURA | D18: 06.02 - ATTIVITA' CULTURALI | F18: Interventi di valorizzazione dell’arte contemporanea | H18: 441,510.38 € | I18: 441,510.38 € | K18: 0 | L18: 0 | M18: 441,510.38 € | N18: 0 | O18: 0 | P18: 0 | Q18: 0
A19: 19 | B19: Regione Marche – Organismi strumentali in-house providing | C19: 06 - CULTURA | D19: 06.01 - PATRIMONIO E PAESAGGIO | F19: Adeguamento funzionale e strutturale del Sistema Informativo Regionale del Patrimonio Culturale (SIRPaC) | H19: 392,453.67 € | I19: 392,453.67 € | K19: 0 | L19: 0 | M19: 50,000.00 € | N19: 146,226.84 € | O19: 196,226.83 € | P19: 0 | Q19: 0
A20: 20 | B20: Regione Marche – Organismi strumentali in-house providing | C20: 06 - CULTURA | D20: 06.02 - ATTIVITA' CULTURALI | F20: Spese per la realizzazione per la fruizione digitale del Patrimonio Culturale | H20: 686,793.92 € | I20: 686,793.92 € | K20: 0 | L20: 0 | M20: 171,698.48 € | N20: 171,698.48 € | O20: 98,113.42 € | P20: 245,283.54 € | Q20: 0
A21: 21 | B21: Regione Marche | C21: 03 - COMPETITIVITA' IMPRESE | D21: 03.01 - INDUSTRIA E SERVIZI | F21: Contrbuti alle associazioni di categoria del settore cooperazione per progetti di informazione, ed assistenza alle imprese cooperative | H21: 147,170.12 € | I21: 147,170.12 € | K21: 0 | L21: 103,019.08 € | M21: 44,151.04 € | N21: 0 | O21: 0 | P21: 0 | Q21: 0
A22: 22 | B22: Regione Marche | C22: 03 - COMPETITIVITA' IMPRESE | D22: 03.01 - INDUSTRIA E SERVIZI | F22: Sostegno alle PMI cooperative per gli investimenti in ammodernamento tecnologico e creazione di nuove unità produttive e per le attività di animazione | H22: 490,567.08 € | I22: 490,567.08 € | K22: 0 | L22: 0 | M22: 196,226.83 € | N22: 294,340.25 € | O22: 0 | P22: 0 | Q22: 0
A23: 23 | B23: Regione Marche | C23: 03 - COMPETITIVITA' IMPRESE | D23: 03.01 - INDUSTRIA E SERVIZI | F23: Sostegno alle PMI cooperative per gli investimenti in ammodernamento tecnologico e creazione di nuove unità produttive e per le attività di animazione e supporto alle imprese cooperative | H23: 343,396.96 € | I23: 343,396.96 € | K23: 0 | L23: 0 | M23: 137,358.78 € | N23: 206,038.18 € | O23: 0 | P23: 0 | Q23: 0
A24: 24 | B24: Regione Marche | C24: 03 - COMPETITIVITA' IMPRESE | D24: 03.01 - INDUSTRIA E SERVIZI | F24: Investimenti produttivi delle PMI | H24: 2,452,835.41 € | I24: 2,452,835.41 € | K24: 0 | L24: 0 | M24: 2,452,835.41 € | N24: 0 | O24: 0 | P24: 0 | Q24: 0
A25: 25 | B25: Regione Marche e soggetto gestore | C25: 09 - LAVORO E OCCUPABILITA' | D25: 09.01 - SVILUPPO DELL'OCCUPAZIONE | F25: Fondo Regionale di ingegneria finanziaria – Fidejussione | H25: 294,340.25 € | I25: 294,340.25 € | K25: 0 | L25: 0 | M25: 25,000.00 € | N25: 30,000.00 € | O25: 119,340.25 € | P25: 90,000.00 € | Q25: 30,000.00 €
A26: 26 | B26: Regione Marche | C26: 09 - LAVORO E OCCUPABILITA' | D26: 09.01 - SVILUPPO DELL'OCCUPAZIONE | F26: Incentivi per la stabilizzazione dei lavoratori precari residenti nella Regione Marche” | H26: 7,643,471.33 € | I26: =M26+O26+P26+Q26 -> 7,643,471.33 € | K26: 0 | L26: 0 | M26: 3,137,800.51 € | N26: 0 | O26: 1,524,004.16 € | P26: 1,348,333.33 € | Q26: 1,633,333.33 €
A27: 27 | B27: Regione Marche | C27: 09 - LAVORO E OCCUPABILITA' | D27: 09.01 - SVILUPPO DELL'OCCUPAZIONE | F27: Avviso per la concessione di “Aiuti alle assunzioni di soggetti disoccupati residenti nella Regione Marche” | H27: 6,384,131.18 € | I27: 6,384,131.18 € | K27: 0 | L27: 797,022.22 € | M27: 1,802,977.78 € | N27: 0 | O27: 1,000,000.00 € | P27: 1,184,131.18 € | Q27: 1,600,000.00 €
A28: 28 | B28: Regione Marche | C28: 09 - LAVORO E OCCUPABILITA' | D28: 09.01 - SVILUPPO DELL'OCCUPAZIONE | F28: Avviso per la concessione di “Aiuti alle assunzioni di soggetti svantaggiati” | H28: 2,452,835.41 € | I28: 2,452,835.41 € | K28: 0 | L28: 350,000.00 € | M28: 1,401,000.00 € | N28: 0 | O28: 301,835.41 € | P28: 200,000.00 € | Q28: 200,000.00 €
A29: 29 | B29: Regione Marche | C29: 09 - LAVORO E OCCUPABILITA' | D29: 09.01 - SVILUPPO DELL'OCCUPAZIONE | F29: Finanziamento Fondo Regionale di ingegneria finanziaria per la concessione di microcredito alle Micro e Piccole Imprese e ai liberi professionisti in possesso delle caratteristiche previste dagli Avvisi pubblici | H29: 9,558,481.66 € | I29: 9,558,481.66 € | K29: 0 | L29: 0 | M29: 2,868,000.00 € | N29: 80,000.00 € | O29: 2,948,000.00 € | P29: 2,161,173.49 € | Q29: 1,501,308.17 €
A30: 30 | B30: Regione Marche | C30: 11 - ISTRUZIONE E FORMAZIONE | D30: 11.02 - EDUCAZIONE E FORMAZIONE | F30: Emanazione avvisi pubblici per la presentazione di progetti formativi | H30: 6,867,939.15 € | I30: 6,867,939.15 € | K30: 0 | L30: 0 | M30: 1,173,587.83 € | N30: 1,595,286.31 € | O30: 1,595,286.31 € | P30: 1,595,286.31 € | Q30: 908,492.39 €
A31: 32 | B31: Regione Marche e ERDIS | C31: 11 - ISTRUZIONE E FORMAZIONE | D31: 11.02 - EDUCAZIONE E FORMAZIONE | F31: Finanziamento quota monetaria della borsa di studio aggiudicata con graduatorie definitive riferite a bandi ERDIS | H31: 3,000,000.00 € | I31: 3,000,000.00 € | K31: 0 | M31: 0 | N31: 0 | O31: 3,000,000.00 € | P31: 0 | Q31: 0
A32: 33 | B32: Regione Marche | C32: 11 - ISTRUZIONE E FORMAZIONE | D32: 11.02 - EDUCAZIONE E FORMAZIONE | F32: Finanziamento Misure ed Azioni per la promozione della pratica sportiva e delle attività motorio-ricreative nel territorio regionale | H32: 500,000.00 € | I32: 500,000.00 € | K32: 0 | L32: 0 | M32: 375,000.00 € | N32: 125,000.00 € | O32: 0 | P32: 0 | Q32: 0
A33: 34 | B33: Regione Marche, Ambiti Territoriali Sociali/ Comuni | C33: 10 - SOCIALE E SALUTE | D33: 10.03 - SERVIZI SOCIO - ASSISTENZIALI | F33: Intervento per il sostengo delle azioni a favore dei minori temporaneamente allontanati dalla famiglia di origine e collocati in strutture residenziali | H33: 1,000,000.00 € | I33: 1,000,000.00 € | K33: 0 | L33: 0 | M33: 1,000,000.00 € | N33: 0 | O33: 0 | P33: 0 | Q33: 0
A34: 35 | B34: Regione Marche, Ambiti Territoriali Sociali/ Comuni | C34: 10 - SOCIALE E SALUTE | D34: 10.03 - SERVIZI SOCIO - ASSISTENZIALI | F34: L.R. 9/2003 - Intervento per l’implementazione dei servizi educativi per minori in fascia di età 3/17 anni | H34: 500,000.00 € | I34: 500,000.00 € | K34: 0 | L34: 0 | M34: 500,000.00 € | N34: 0 | O34: 0 | P34: 0 | Q34: 0
A35: 36 | B35: Regione Marche, Ambiti Territoriali Sociali/ Comuni | C35: 10 - SOCIALE E SALUTE | D35: 10.03 - SERVIZI SOCIO - ASSISTENZIALI | F35: L.R. 18/96 - Art. 14 Integrazione scolastica - Trasporto scolastico alunni disabili | H35: 1,200,000.00 € | I35: 1,200,000.00 € | K35: 0 | L35: 0 | M35: 1,200,000.00 € | N35: 0 | O35: 0 | P35: 0 | Q35: 0
A36: 37 | B36: Regione Marche, Ambiti Territoriali Sociali/ Comuni | C36: 10 - SOCIALE E SALUTE | D36: 10.03 - SERVIZI SOCIO - ASSISTENZIALI | F36: L.R. n. 32/2014 articolo 23 - Contributi erogati dalla Regione agli ATS per la gestione dell’intervento “disabilità gravissima” attraverso assegnazione diretta | H36: 3,000,000.00 € | I36: 3,000,000.00 € | K36: 0 | L36: 0 | M36: 3,000,000.00 € | N36: 0 | O36: 0 | P36: 0 | Q36: 0
A37: 38 | B37: Regione Marche, Ambiti Territoriali Sociali/ Comuni | C37: 10 - SOCIALE E SALUTE | D37: 10.03 - SERVIZI SOCIO - ASSISTENZIALI | F37: L.R. 18/96 - Intervento di assistenza domiciliare domestica ed educativa in favore delle persone in condizione di disabilità | H37: 1,100,000.00 € | I37: 1,100,000.00 € | K37: 0 | L37: 0 | M37: 500,000.00 € | N37: 600,000.00 € | O37: 0 | P37: 0 | Q37: 0
A38: 39 | B38: Regione Marche, Ambiti Territoriali Sociali/ Comuni | C38: 10 - SOCIALE E SALUTE | D38: 10.03 - SERVIZI SOCIO - ASSISTENZIALI | F38: L.R. 25/2014, art. 11 - Contributi alle famiglie con persone con disturbi dello spettro autistico. | H38: 250,000.00 € | I38: 250,000.00 € | K38: 0 | L38: 0 | M38: 250,000.00 € | N38: 0 | O38: 0 | P38: 0 | Q38: 0
A39: 40 | B39: Regione Marche, Ambiti Territoriali Sociali/ Comuni | C39: 10 - SOCIALE E SALUTE | D39: 10.03 - SERVIZI SOCIO - ASSISTENZIALI | F39: L.R. n. 32/2014 articolo 23 - Intervento a favore di persone anziane non autosufficienti. Contributi erogati dalla Regione agli ATS per la gestione degli interventi Assegno di cura e SAD - Servizio di Assistenza Domiciliare | H39: 2,550,000.00 € | I39: 2,550,000.00 € | K39: 0 | L39: 0 | M39: 2,550,000.00 € | N39: 0 | O39: 0 | P39: 0 | Q39: 0
A40: 41 | B40: Regione Marche | C40: 12 - CAPACITA' AMMINISTRATIVA | D40: 12.02 - ASSISTENZA TECNICA | E40: B31C24000070001 | F40: Efficace attuazione dell'Accordo di Coesione Marche 21-27 | H40: 647,749.68 € | I40: 647,749.68 € | K40: 0 | L40: 0 | M40: 129,549.94 € | N40: 129,549.94 € | O40: 129,549.94 € | P40: 129,549.94 € | Q40: 129,549.94 €
H42: =SUM(H3:H40) -> 154,317,007.03 € | I42: =SUM(I3:I40) -> 154,317,007.03 € | K42: 0 | L42: 6,155,712.11 € | M42: 41,712,596.00 € | N42: 27,399,562.92 € | O42: 35,043,331.80 € | P42: 28,619,637.80 € | Q42: 15,386,166.42 €
